Cogmind - Beta 17.1 @@@ ROGUE MODE // 2026.09.13 @ 00:41:33 Player: KURIIRI Result: Self-destructed Performance ------------- Evolutions (5) 2500 Regions Visited (16) 3200 Robots Destroyed (333) 1665 Value Destroyed (12488) 12488 Prototype IDs (30) 600 Alien Tech Used (0) 0 Bonus (6262) 6262 TOTAL SCORE: 26715 Bonus ------- High Alert Combat Kills 1599 Follower Combat Kills 2002 Entered Garrisons 600 Used RIF Installer 2500 Network Hubs Disabled 200 Built Enhanced Grunts 300 A7 Reached Mainframe 300 Met R17 at Cetus 500 Friendly Fire -1739 Cogmind --------- Core Integrity 1000/1000 Matter 300/300 Energy 300/300 System Corruption 0% Temperature Cool (0) Movement Treading (160) Location -5/Factory Parts ------- > --- POWER (1) -------- Enhanced Nuclear Core > --- PROPULSION (4) --- Centrium Heavy Treads Centrium Heavy Treads > --- UTILITY (9) ------ Advanced Heat Sink Huge Storage Unit Enhanced Optical Array Improved Sensor Array Improved Signal Interpreter Centrium Medium Armor Plating Improved Hacking Suite > --- WEAPON (3) ------- Heavy Plasma Cannon > --- INVENTORY (25) --- Light Angular Momentum Engine Advanced Energy Well (500) Advanced Particle Charger Advanced Kinecellerator Improved System Shield Relay Coupler [Sentry] (24) Relay Coupler [Sentry] (24) Relay Coupler [Demolisher] (24) Relay Coupler [Hunter] (19) Dynamic Insulation System Heavy Shock Bomb Launcher Remote Datajack Remote Datajack Multitool Peak State ------------ > --- POWER ------------ Quantum Reactor > --- PROPULSION ------- Centrium Heavy Treads Centrium Heavy Treads > --- UTILITY ---------- Huge Storage Unit Enhanced Optical Array Improved Sensor Array Improved Signal Interpreter Centrium Medium Armor Plating Improved Hacking Suite > --- WEAPON ----------- Plasma Cannon Heavy Plasma Cannon > --- INVENTORY -------- Enhanced Nuclear Core Light Angular Momentum Engine Advanced Heat Sink Advanced Energy Well Advanced Particle Charger Advanced Kinecellerator Improved System Shield Relay Coupler [Sentry] Relay Coupler [Sentry] Relay Coupler [Demolisher] Relay Coupler [Hunter] Dynamic Insulation System Heavy Shock Bomb Launcher Remote Datajack Remote Datajack Multitool [Rating: 88] Favorites ----------- Power Ion Engine Engine Ion Engine Power Core Enhanced Nuclear Core Reactor Antimatter Reactor Propulsion Armored Huge Wheel Treads Light Treads Leg Aluminum Leg Wheel Armored Huge Wheel Utility Advanced Targeting Computer Device Advanced Cooling System Storage Huge Storage Unit Processor Advanced Targeting Computer Hackware Relay Coupler [Grunt] Protection Medium Reactive Plating Weapon Heavy Plasma Cannon Energy Gun Heavy Laser Energy Cannon Heavy Plasma Cannon Ballistic Gun Enhanced Autogun Ballistic Cannon Light Cannon Launcher Heavy Shock Bomb Launcher Special Weapon Remote Datajack Impact Weapon Heavy Flail Special Melee Weapon Improved Datajack Build | -11 -10 -10 -8 -8 -8 -8 -7 -7 -6 -6 -6 -6 -6 -6 -6 -5 ------- Run | Yrd Mat Sub Mat Gar Mat Gar Fac Gar Fac Was Fac Ext Cet Arc Hub Fac Slots Evolved 10 | . . . 4 . . . 2 . 2 . . . . . . 2 Power . | . . . . . . . . . . . . . . . . . Propulsion 2 | . . . 1 . . . 1 . . . . . . . . . Utility 7 | . . . 2 . . . 1 . 2 . . . . . . 2 Weapon 1 | . . . 1 . . . . . . . . . . . . . Parts Attached 167 | 2 10 12 15 10 10 11 29 10 16 2 11 8 . 12 9 . Power 20 | . 1 1 2 1 2 2 4 2 2 1 . . . 2 . . Engine 9 | . 1 1 1 . 1 1 2 . 1 . . . . 1 . . Core 7 | . . . 1 1 1 1 1 1 1 . . . . . . . Reactor 4 | . . . . . . . 1 1 . 1 . . . 1 . . Propulsion 25 | 2 . 2 4 1 4 2 1 3 2 . 2 . . 2 . . Treads 15 | 2 . 1 3 . 3 2 . 2 . . . . . 2 . . Leg . | . . . . . . . . . . . . . . . . . Wheel 10 | . . 1 1 1 1 . 1 1 2 . 2 . . . . . Hover . | . . . . . . . . . . . . . . . . . Flight . | . . . . . . . . . . . . . . . . . Utility 72 | . 4 1 3 4 2 3 14 4 8 1 7 6 . 7 8 . Device 22 | . 1 . . 1 . 1 4 1 2 1 3 1 . 5 2 . Storage 6 | . 2 . 1 2 . . 1 . . . . . . . . . Processor 5 | . . . 1 . . . . . . . 1 1 . 2 . . Hackware 26 | . . . 1 . 2 . 6 2 4 . 3 3 . . 5 . Protection 13 | . 1 1 . 1 . 2 3 1 2 . . 1 . . 1 . Artifact . | . . . . . . . . . . . . . . . . . Weapon 50 | . 5 8 6 4 2 4 10 1 4 . 2 2 . 1 1 . Energy Gun 3 | . . . . 1 1 . . 1 . . . . . . . . Energy Cannon 15 | . . 3 . . . 1 5 . 2 . 1 2 . . 1 . Ballistic Gun 15 | . 2 3 5 1 . 2 1 . . . . . . 1 . . Ballistic Cannon 2 | . 2 . . . . . . . . . . . . . . . Launcher 9 | . 1 2 1 . . 1 2 . 2 . . . . . . . Special Weapon 4 | . . . . 1 . . 2 . . . 1 . . . . . Impact Weapon 1 | . . . . 1 . . . . . . . . . . . . Slashing Weapon . | . . . . . . . . . . . . . . . . . Piercing Weapon . | . . . . . . . . . . . . . . . . . Special Melee Weapon 1 | . . . . . 1 . . . . . . . . . . . Unidentified Prototypes 10 | . . . 2 . 1 . 3 . 1 1 . . . 1 1 . Corrupted Parts 3 | . . . . . . . . . . . . . . 3 . . System Corruption 22 | . . . . . . . . . . . . . . 22 . . Parts Lost 40 | . . 4 2 1 2 10 6 1 3 . 1 1 1 1 7 . Power 10 | . . 1 . 1 1 2 2 1 . . . . . 1 1 . Propulsion 8 | . . 1 2 . . 2 1 . . . . . . . 2 . Utility 13 | . . 1 . . 1 3 2 . 2 . 1 1 . . 2 . Weapon 9 | . . 1 . . . 3 1 . 1 . . . 1 . 2 . Highest Loss Streak 6 | . . 1 1 1 2 3 2 1 1 . 1 1 1 1 6 . To Critical Strikes 2 | . . . . . . 1 . . . . . . 1 . . . Average Backups 16 | 5 8 7 7 15 17 17 18 19 22 22 22 22 22 21 19 . Power 1 | 1 1 . 1 1 . . 1 1 1 1 1 1 1 1 1 . Propulsion 2 | 3 2 1 . 3 5 5 2 1 1 1 1 1 1 1 1 . Utility 6 | . 2 1 1 4 5 5 6 9 10 12 13 13 12 12 9 . Weapon 4 | 1 2 4 3 3 4 4 6 4 6 5 4 4 3 4 2 . Tool/Special . | . . . . . . . . . . . . . . . . . Unused Backups 30 | . 2 4 2 . . . 3 2 4 . 3 . 1 1 . 8 Power 2 | . 1 . . . . . 1 . . . . . . . . . Propulsion 3 | . . 1 . . . . 1 1 . . . . . . . . Utility 18 | . 1 1 . . . . 1 1 1 . 3 . 1 1 . 8 Weapon 7 | . . 2 2 . . . . . 3 . . . . . . . Tool/Special . | . . . . . . . . . . . . . . . . . Average Slot Usage (%) 85 | . 97 87 86 92 93 96 78 83 79 80 79 79 76 76 81 . Engine 4 | . 14 13 3 2 1 3 1 1 . . . . . . . . Core 2 | . . . 5 4 7 4 2 3 2 4 . . . 3 . . Reactor 1 | . . . . . . . 1 1 2 1 6 6 6 2 5 . Treads 10 | . 28 19 17 18 14 17 . 11 . . . . . 1 1 . Wheel 9 | . . 8 6 4 8 8 14 7 12 13 13 13 13 10 11 . Device 4 | . 4 . . 1 . 1 10 5 8 6 4 6 6 10 5 . Storage 6 | . 14 3 5 9 9 9 7 7 6 6 6 6 6 6 6 . Processor 6 | . . . 8 9 9 9 7 7 6 6 6 5 6 8 17 . Hackware 6 | . . . 8 9 7 3 1 4 7 13 13 12 13 13 14 . Protection 7 | . 7 12 3 6 8 11 6 7 9 6 6 6 6 . 1 . Energy Cannon 11 | . . 17 . . . . 17 19 18 20 16 15 10 2 10 . Ballistic Gun 8 | . 20 7 26 21 25 22 2 . . . . . . 3 2 . Special Weapon 1 | . . . . . . . . 1 . . 3 3 . 9 2 . Peak Build Rating 88 | 6 8 12 27 40 36 42 61 60 72 76 76 74 73 80 88 . Average Rating 44 | 5 7 10 22 33 32 32 52 52 66 72 71 71 70 65 77 . On Entrance 46 | 6 6 8 12 27 36 31 42 45 58 71 76 71 72 70 69 84 Avg Prop Armor Cover (%) 8 | . . 6 7 7 10 11 6 11 9 . . . . 8 . . Naked Turns . | . . . . . . . . . . . . . . . . . Heaviest Build 164 | 12 54 56 38 76 77 81 128 136 152 164 164 163 163 156 130 . Greatest Support 160 | 40 40 40 60 60 60 40 56 28 56 56 56 56 56 80 160 . Greatest Overweight (x) 36 | . 1 3 2 2 4 5 4 4 4 2 2 2 2 36 4 . Average Overweight (x) 1 | . . 1 1 1 3 3 1 4 2 2 2 2 2 1 1 . Largest Inventory Capacity 25 | 8 20 20 15 20 20 20 25 25 25 25 25 25 25 25 25 . Average Capacity 19 | 8 11 9 10 17 20 20 20 25 25 25 25 25 25 25 25 . Most Carried 25 | 6 12 15 15 18 20 20 20 25 25 25 25 25 25 25 25 . Average Carried 17 | 5 8 7 8 15 19 19 18 20 23 23 24 24 24 23 20 . Final Capacity 25 | 8 20 5 15 20 20 20 25 25 25 25 25 25 25 25 25 25 Final Carried 25 | 4 12 5 15 18 19 16 17 25 25 24 25 25 25 25 14 14 Class Distribution -------------------- 26% | Bothacker-Gunner 12% | Mutant 11% | Scavenger-Gunner 11% | Subdweller-Mutant 5% | Scavenger-Mutant 5% | Botlord-Gunner 4% | Commander-Gunner 3% | Commander-Mutant 3% | Bothacker-Mutant 3% | Botlord-Tank Dominant Class ---------------- Mutant | -10/Materials Subdweller-Mutant | -10/Subcaves Subdweller-Gunner | -8/Materials Scavenger-Mutant | -8/Garrison Scavenger-Gunner | -8/Materials Scavenger-Gunner | -8/Garrison Bothacker-Gunner | -7/Factory Bothacker-Gunner | -7/Garrison Bothacker-Gunner | -6/Factory Botlord-Gunner | -6/Waste Bothacker-Gunner | -6/Factory Bothacker-Gunner | -6/Extension Commander-Mutant | -6/Cetus Commander-Gunner | -6/Archives Bothacker-Mutant | -6/Hub_04(d) Bothacker-Mutant | -5/Factory Resources | -11 -10 -10 -8 -8 -8 -8 -7 -7 -6 -6 -6 -6 -6 -6 -6 -5 ----------- Run | Yrd Mat Sub Mat Gar Mat Gar Fac Gar Fac Was Fac Ext Cet Arc Hub Fac Matter Collected 8341 | 229 407 705 559 548 364 1128 1047 894 495 96 184 501 150 757 277 . Remotely . | . . . . . . . . . . . . . . . . . Salvage Created 14311 | 116 663 777 1149 702 569 1040 1852 1714 2884 . 440 951 508 460 486 . Parts 737 | 5 49 57 66 38 27 60 109 73 101 . 19 51 22 33 27 . Haulers Intercepted 12 | . 1 . 2 . 3 . 4 . 2 . . . . . . . Recyclers Shooed 12 | . 2 . 1 . . . 1 . 5 . 2 1 . . . . Parts Field Recycled . | . . . . . . . . . . . . . . . . . Retrieved Matter . | . . . . . . . . . . . . . . . . . Parts Self-Destructed 10 | . . 10 . . . . . . . . . . . . . . Prevented . | . . . . . . . . . . . . . . . . . Parts Restored . | . . . . . . . . . . . . . . . . . Kills | -11 -10 -10 -8 -8 -8 -8 -7 -7 -6 -6 -6 -6 -6 -6 -6 -5 ------- Run | Yrd Mat Sub Mat Gar Mat Gar Fac Gar Fac Was Fac Ext Cet Arc Hub Fac Combat Hostiles Destroyed 224 | . 13 26 19 16 6 27 29 26 29 . 3 17 6 . 7 . Guns 66 | . 4 3 16 14 6 22 1 . . . . . . . . . Cannons 92 | . . 16 . . . . 13 18 24 . 3 12 . . 6 . AOE 53 | . 9 7 3 2 . 5 15 6 3 . . 3 . . . . Classes Destroyed 22 | 2 7 3 1 2 1 1 1 1 1 . 1 1 . . . . Worker 22 | . 4 . 1 . . . 6 . 6 . . 2 . . 3 . Builder 11 | . 1 . 1 . . . 2 . 6 . . 1 . . . . Tunneler 4 | 1 . . 1 . . . 2 . . . . . . . . . Hauler 12 | . 1 . 2 . 3 . 4 . 2 . . . . . . . Recycler 21 | 1 2 . 3 . 1 . 7 . 7 . . . . . . . Mechanic 1 | . . . 1 . . . . . . . . . . . . . Operator 13 | . 1 . . . 1 . 1 . 2 . . . . 8 . . Watcher 18 | . 3 . 3 . 1 1 3 1 2 . 2 . 1 . 1 . Swarmer 63 | . 3 5 6 8 . 14 7 8 7 . . 5 . . . . Cutter 3 | . . . . . . . 3 . . . . . . . . . Grunt 60 | . 10 . 9 4 4 4 10 9 5 . 1 3 . . 1 . Brawler 4 | . . . . 1 . 1 . . 1 . . 1 . . . . Duelist 2 | . . . . . . . . 1 1 . . . . . . . Sentry 27 | . . 1 4 2 . 2 2 5 3 . . 6 . . 2 . Specialist 10 | . . . . . . 1 3 1 4 . . . . . 1 . Hunter 13 | . . . . . 2 3 1 1 4 . 1 . . . 1 . Programmer 13 | . . . . 1 . 2 3 1 3 . 1 . . . 2 . Heavy 1 | . . . . . . . . . 1 . . . . . . . Behemoth 2 | . . . . . . . . . . . . 2 . . . . Cetus Guard 6 | . . . . . . . . . . . . . 6 . . . Artisan 1 | . . 1 . . . . . . . . . . . . . . Subdweller 20 | . . 20 . . . . . . . . . . . . . . Wasp 2 | . . . . . . . . . . . 2 . . . . . Thug 2 | . . . . . . . . . . . 1 . . 1 . . Butcher 1 | . . . . . . . . . . . . . . 1 . . Martyr 2 | . . . . . . . . . . . 2 . . . . . Best Kill Streak 14 | 2 7 5 6 4 3 7 14 5 7 . 2 4 5 4 2 . Combat Bots Only 7 | . 5 5 3 4 2 7 7 5 5 . 2 3 4 . 2 . Max Kills in Single Turn 4 | 1 2 2 3 1 1 4 2 2 3 . 2 2 1 1 1 . Gunslinging 1 | . . . . . . 1 . . . . . . . . . . Exploded 4 | . 2 2 2 1 . 4 2 2 2 . . 1 . . . . Melee . | . . . . . . . . . . . . . . . . . Uniques/NPCs Destroyed . | . . . . . . . . . . . . . . . . . Combat | -11 -10 -10 -8 -8 -8 -8 -7 -7 -6 -6 -6 -6 -6 -6 -6 -5 -------- Run | Yrd Mat Sub Mat Gar Mat Gar Fac Gar Fac Was Fac Ext Cet Arc Hub Fac Hostile Shots Fired 1171 | . 28 89 61 42 18 143 109 146 185 . 32 154 18 8 138 . Missed 365 | . 13 32 18 9 2 38 36 48 62 . 6 59 6 2 34 . Hits 806 | . 15 57 43 33 16 105 73 98 123 . 26 95 12 6 104 . Melee 17 | . . . . 1 . 1 10 5 . . . . . . . . Projectile 789 | . 15 57 43 32 16 104 63 93 123 . 26 95 12 6 104 . AOE 1 | . . 1 . . . . . . . . . . . . . . Critical Strikes 38 | . . 1 1 . 1 6 11 1 2 . 4 2 3 . 6 . Part Disruptions 1 | . . . . 1 . . . . . . . . . . . . Damage Taken 11566 | . 156 1163 572 374 271 1200 1257 1283 1301 . 502 816 137 94 2440 . Core 1283 | . 7 181 18 41 38 80 70 127 144 . 18 107 22 . 430 . Absorbed by Shields 167 | . . . . . . 46 67 . . . . . 54 . . . Ignored by Resistances 990 | . . . . 37 25 186 . 15 238 . 80 224 134 51 . . Regen/Repaired (Parts) 881 | . . . . . . . 318 . 227 237 99 . . . . . Core Remaining (%) 55 | 100 . 24 . . . 67 . 71 . . . . . . 15 . Volleys Fired 1028 | 3 57 71 48 71 22 122 120 157 106 . 35 69 11 90 46 . Largest 3 | 2 2 2 3 3 3 3 3 3 3 . 3 3 2 2 2 . Hottest 250 | 60 60 160 90 119 98 154 215 250 210 . 210 200 136 180 180 . Shots Fired 1808 | 6 100 120 139 129 66 234 218 218 234 . 69 101 12 98 64 . Gun 739 | 6 70 31 137 127 66 226 33 . . . . . . 36 7 . Cannon 832 | . 18 74 . . . 6 142 168 221 . 57 70 2 20 54 . Launcher 77 | . 12 15 2 2 . 2 18 4 3 . . 9 10 . . . Special 160 | . . . . . . . 25 46 10 . 12 22 . 42 3 . Kinetic 707 | 3 84 52 139 90 65 207 24 . . . . . . 36 7 . Thermal 933 | . . 63 . 39 . 25 151 202 221 . 57 70 2 58 45 . Explosive 41 | . 12 5 . . . 2 18 4 . . . . . . . . Electromagnetic 39 | 3 4 . . . 1 . . . 3 . . 9 10 . 9 . Robot Hit Streak 44 | 4 10 15 13 38 14 23 13 29 42 . 44 12 . 19 16 . Robot Miss Streak 4 | 1 4 3 3 3 2 3 4 1 3 . 2 1 . 4 2 . Penetration Max 1 | . . . . . . 1 . . . . . . . 1 1 . Secondary Targets 14 | . 1 . 4 4 . 5 . . . . . . . . . . Max Gunslinging Chain 1 | . 1 . 1 1 . 1 . . . . . . . . . . Shots Hit Robots 1146 | 4 47 73 85 89 47 169 121 151 137 . 47 66 . 64 46 . Core Hits 571 | 2 38 36 47 36 19 72 74 62 73 . 16 33 12 32 19 . Critical Kills 12 | . . . 1 . 1 . . 2 5 . . 2 . 1 . . Critical Parts Destroyed 5 | . . . 3 . . 2 . . . . . . . . . . Critical Strikes 20 | . 1 2 4 . 1 2 . 2 5 . . 2 . 1 . . Meltdown 9 | . . . . . . . . 2 5 . . 2 . . . . Destroy 8 | . . . 4 . 1 2 . . . . . . . 1 . . Blast 2 | . . 2 . . . . . . . . . . . . . . Corrupt 1 | . 1 . . . . . . . . . . . . . . . Melee Attacks 49 | . . . . 30 2 7 1 9 . . . . . . . . Impact 47 | . . . . 30 . 7 1 9 . . . . . . . . Slashing . | . . . . . . . . . . . . . . . . . Piercing . | . . . . . . . . . . . . . . . . . Sneak Attacks . | . . . . . . . . . . . . . . . . . Combat Hostiles . | . . . . . . . . . . . . . . . . . Follow-up Attacks . | . . . . . . . . . . . . . . . . . Damage Inflicted 31954 | 78 1231 2428 2064 1760 701 3203 4583 3949 5062 . 1223 2057 782 1315 1518 . Guns 8840 | 36 490 478 1620 1620 701 2760 327 . . . . . . 617 191 . Cannons 16148 | . 125 1168 . . . 89 2272 3105 4628 . 1223 1675 . 536 1327 . Explosions 6463 | 42 605 782 430 140 . 341 1984 603 434 . . 320 782 . . . Melee . | . . . . . . . . . . . . . . . . . Ramming 102 | . 11 . 14 . . 13 . 2 . . . 62 . . . . Kinetic 8991 | 11 582 1187 1887 1046 686 2533 251 . . . . . . 617 191 . Thermal 17104 | 42 . 1014 . 714 . 316 2348 3344 4663 . 1223 1675 . 698 1067 . Explosive 4238 | . 605 227 163 . . 341 1984 603 315 . . . . . . . Electromagnetic 1519 | 25 33 . . . 15 . . . 84 . . 320 782 . 260 . Impact . | . . . . . . . . . . . . . . . . . Slashing . | . . . . . . . . . . . . . . . . . Piercing . | . . . . . . . . . . . . . . . . . Highest Corruption 18 | . . . . 3 3 5 3 . 4 4 5 1 1 10 18 . Average Corruption 2 | . . . . 2 3 4 1 . 2 4 4 1 1 2 3 . Corruption Purged 31 | . . . . . . . 3 . . . 3 2 . 23 . . Corruption Blocked . | . . . . . . . . . . . . . . . . . Effects 162 | . . . . 14 10 36 19 . 19 3 24 10 4 16 7 . Message Errors 44 | . . . . 5 1 11 8 . 2 1 5 5 2 3 1 . Matter Fused 32 | . . . . 1 5 9 4 . 4 1 2 1 1 2 2 . Heat Flow Errors 18 | . . . . 2 . 2 3 . 2 . 5 . 1 3 . . Energy Discharges 23 | . . . . 4 2 4 1 . 2 1 7 . . 2 . . Parts Fused 2 | . . . . . 1 . . . . . . . . 1 . . Data Loss (minor) 22 | . . . . 2 . 4 3 . 3 . 3 . . 4 3 . Data Loss (major) 6 | . . . . . 1 1 . . 3 . . . . . 1 . Misfires 8 | . . . . . . 3 . . 1 . 1 2 . 1 . . Alerts 2 | . . . . . . . . . 1 . 1 . . . . . Weapon Failures 5 | . . . . . . 2 . . 1 . . 2 . . . . Overload Shots 21 | . . . . . . . 6 3 4 . . 7 1 . . . Effects 1 | . . . . . . . 1 . . . . . . . . . Energy Bleed 1 | . . . . . . . 1 . . . . . . . . . Overflow Damage 545 | . 18 16 34 53 . 2 101 33 98 . 68 37 . 50 35 . Projectiles 381 | . . . . . . . 65 33 95 . 68 35 . 50 35 . Explosions 162 | . 18 16 34 53 . 2 36 . 3 . . . . . . . Melee 2 | . . . . . . . . . . . . 2 . . . . Knockbacks 6 | . 1 3 1 . . . . . . . . 1 . . . . Impact 2 | . . . 1 . . . . . . . . 1 . . . . Kinetic 3 | . 1 2 . . . . . . . . . . . . . . Secondary 1 | . . 1 . . . . . . . . . . . . . . Self-Inflicted Damage 403 | . . 68 . . . . 215 . . . . 120 . . . . Shots 10 | . . 2 . . . . 4 . . . . 4 . . . . Rammed 15 | . 3 . 4 . . 6 . 1 . . . 1 . . . . Targets Rammed 17 | . 5 . 4 . . 6 . 1 . . . 1 . . . . Kicked . | . . . . . . . . . . . . . . . . . Crushed 2 | . 2 . . . . . . . . . . . . . . . Highest Temperature 487 | . 36 324 120 362 92 390 321 340 404 . 487 171 212 372 417 . Average Temperature 92 | . 12 78 31 107 35 97 41 125 103 . 188 55 122 112 126 . Received Heat Transfer 2532 | . 78 102 243 54 117 402 228 342 264 . 144 216 . 9 333 . Effects 21 | . . . . 2 . 2 . 3 3 . 6 . . 2 3 . Shutdowns 9 | . . . . 1 . 2 . 1 1 . 3 . . 1 . . Energy Bleed 2 | . . . . . . . . . 1 . . . . . 1 . Interference 4 | . . . . . . . . 2 1 . 1 . . . . . Matter Decay 1 | . . . . . . . . . . . 1 . . . . . Short Circuit 4 | . . . . 1 . . . . . . . . . 1 2 . Damage (minor) 1 | . . . . . . . . . . . 1 . . . . . Siege Activations . | . . . . . . . . . . . . . . . . . Martial Activations . | . . . . . . . . . . . . . . . . . Shielding Activations . | . . . . . . . . . . . . . . . . . Robots Disrupted 2 | . . . . . . . . . . . . . . 1 1 . Combat Hostiles 1 | . . . . . . . . . . . . . . . 1 . Robots Corrupted 8 | . 1 . . . . . . . . . . . 6 . 1 . Combat Hostiles 7 | . . . . . . . . . . . . . 6 . 1 . Parts Fried 6 | . . . . . . . . . . . . . 4 . 2 . Impact Corruptions 1 | . . . . . . . . . . . . 1 . . . . Robots Melted 13 | . . . . . . . . 5 6 . . 2 . . . . Combat Hostiles 6 | . . . . . . . . 2 2 . . 2 . . . . Parts Melted 66 | . . 1 . 1 . . 4 10 30 . 5 6 . 2 7 . Heat Transferred 26239 | . . 1369 . 1369 . 592 3629 5563 6626 . 1805 2411 . 1500 1375 . Parts Sabotaged . | . . . . . . . . . . . . . . . . . Parts Stolen . | . . . . . . . . . . . . . . . . . Parts Stripped . | . . . . . . . . . . . . . . . . . Power Chain Reactions 3 | 1 . . . . . . . . 1 . . 1 . . . . Alert | -11 -10 -10 -8 -8 -8 -8 -7 -7 -6 -6 -6 -6 -6 -6 -6 -5 ------- Run | Yrd Mat Sub Mat Gar Mat Gar Fac Gar Fac Was Fac Ext Cet Arc Hub Fac Maximum Alert Level 4 | . 1 . 1 3 2 3 3 4 3 1 1 2 2 1 3 . Low Security (%) 29 | 100 87 . 58 2 . 3 . . 9 4 49 62 . 82 20 . Level 1 30 | . 12 . 41 18 51 17 68 8 37 95 50 7 7 17 32 . Level 2 23 | . . . . 50 48 28 20 17 38 . . 30 92 . 38 . Level 3 15 | . . . . 28 . 51 10 55 14 . . . . . 9 . Level 4 1 | . . . . . . . . 19 . . . . . . . . Level 5 . | . . . . . . . . . . . . . . . . . High Security . | . . . . . . . . . . . . . . . . . Max Security . | . . . . . . . . . . . . . . . . . Peak Influence 1463 | 10 236 . 293 1062 596 1035 793 1463 847 295 341 585 547 294 755 . Initial 767 | . . . . 170 517 178 543 300 767 295 136 20 310 178 . 158 Average 387 | 4 103 . 172 600 406 649 391 855 438 247 174 219 462 125 406 . Influence Increases 10996 | 10 518 145 599 902 271 977 1398 1223 1142 . 602 1341 367 305 1196 . Destroy 0b10 Robot/C 5220 | . 260 120 380 320 160 580 680 620 580 . 240 600 160 80 440 . Destroy 0b10 Robot/NC 625 | 10 60 . 60 10 35 15 125 30 125 . 15 30 10 40 60 . Destroy Leader 912 | . 68 10 100 30 50 50 162 40 158 . 54 72 . . 118 . Allied During Kill 1431 | . . . . . 24 4 21 27 . . 157 512 170 120 396 . Successful Hack 230 | . 6 . 10 . . 14 96 . 20 . 52 . . . 32 . Select Force Hacks 110 | . 60 . . . . . . . . . . . . . 50 . Disable Machine 660 | . 15 . 15 . . . 195 30 135 . 45 105 15 60 45 . Anti-Garrison Action 1050 | . . . . 450 . 250 . 350 . . . . . . . . Destroy Structure 638 | . 49 . 34 77 2 64 104 111 109 . 9 22 12 5 40 . Partial Spotted 30 | . . . . . . . 15 . 15 . . . . . . . Lose Combat Pursuer 90 | . . 15 . 15 . . . 15 . . 30 . . . 15 . Influence Decreases 10838 | 10 458 205 336 103 1058 217 2004 189 1761 649 755 828 475 752 872 166 Entered New Map 3391 | . . 29 . 93 545 97 492 129 696 549 59 22 245 269 . 166 Time Decay 4274 | 10 458 166 316 . 198 . 612 . 580 100 416 441 180 433 364 . Lost Part 370 | . . 10 20 10 20 100 60 10 30 . 10 10 10 10 70 . Lost Ally 578 | . . . . . 20 20 40 50 30 . 120 80 40 40 138 . Purge Threat 2225 | . . . . . 275 . 800 . 425 . 150 275 . . 300 . Squads Dispatched 49 | . 3 . 3 . 1 . 10 . 12 . 7 4 . . 9 . Investigation 13 | . 2 . 1 . . . 1 . 2 . 5 1 . . 1 . Extermination 9 | . . . . . . . 3 . 3 . 1 . . . 2 . Reinforcement 22 | . 1 . 1 . 1 . 6 . 6 . . 3 . . 4 . Assault 3 | . . . . . . . . . 1 . . . . . 2 . Garrison 2 | . . . 1 . . . . . . . 1 . . . . . Intercept . | . . . . . . . . . . . . . . . . . Searches Triggered . | . . . . . . . . . . . . . . . . . Construction Impeded 3 | . . . . . . . . . 1 . . 2 . . . . Haulers Reinforced 2 | . . . . . . . 1 . . . . . . . 1 . Active Scanning Responses . | . . . . . . . . . . . . . . . . . Cargo Convoy Interrupts 1 | . . . . . . . 1 . . . . . . . . . Stealth | -11 -10 -10 -8 -8 -8 -8 -7 -7 -6 -6 -6 -6 -6 -6 -6 -5 --------- Run | Yrd Mat Sub Mat Gar Mat Gar Fac Gar Fac Was Fac Ext Cet Arc Hub Fac Distress Signals 23 | . 1 . 3 . 1 1 3 . 3 . 4 1 2 . 4 . Communications Jammed . | . . . . . . . . . . . . . . . . . Distress Signals . | . . . . . . . . . . . . . . . . . Times Spotted 414 | . 20 24 24 20 9 35 47 38 38 . 29 35 6 48 41 . Peak Tracking Total 15 | . 5 4 5 6 3 5 4 6 4 . 6 5 5 2 15 . Tactical Retreats 6 | . . 1 . 1 . . . 1 . . 2 . . . 1 . Traps | -11 -10 -10 -8 -8 -8 -8 -7 -7 -6 -6 -6 -6 -6 -6 -6 -5 ------- Run | Yrd Mat Sub Mat Gar Mat Gar Fac Gar Fac Was Fac Ext Cet Arc Hub Fac Traps Triggered 28 | . . . . 3 . 10 5 2 3 . . 3 . . 2 . Indirectly 2 | . . . . . . . . . . . . 2 . . . . Trap Hack Attempts . | . . . . . . . . . . . . . . . . . Triggered . | . . . . . . . . . . . . . . . . . Disarmed . | . . . . . . . . . . . . . . . . . Reprogrammed . | . . . . . . . . . . . . . . . . . Reused . | . . . . . . . . . . . . . . . . . Traps Extracted . | . . . . . . . . . . . . . . . . . Installed . | . . . . . . . . . . . . . . . . . Triggered . | . . . . . . . . . . . . . . . . . Machines | -11 -10 -10 -8 -8 -8 -8 -7 -7 -6 -6 -6 -6 -6 -6 -6 -5 ---------- Run | Yrd Mat Sub Mat Gar Mat Gar Fac Gar Fac Was Fac Ext Cet Arc Hub Fac Machines Disabled 54 | . 1 1 1 1 . 4 13 5 9 . 3 8 1 4 3 . Max in Single Turn 4 | . 1 1 1 1 . 2 2 1 4 . 1 1 1 1 1 . Garrison Access 5 | . . . . . . . 1 . 1 . 2 . . . 1 . Garrison Relay 6 | . . . . 1 . 2 . 3 . . . . . . . . Phase Generator 1 | . . . . . . 1 . . . . . . . . . . Network Hub 1 | . . . . . . . . . . . . . . . 1 . Machines Repaired 2 | . . . . . . . . . 1 . . . . . 1 . Machines Dismantled . | . . . . . . . . . . . . . . . . . Machines Sabotaged 1 | . . . . . . . . . . . . . . . 1 . Overloaded Fab Kills . | . . . . . . . . . . . . . . . . . Hacking | -11 -10 -10 -8 -8 -8 -8 -7 -7 -6 -6 -6 -6 -6 -6 -6 -5 --------- Run | Yrd Mat Sub Mat Gar Mat Gar Fac Gar Fac Was Fac Ext Cet Arc Hub Fac Machines Accessed 63 | . 5 2 6 3 2 2 15 3 8 . 8 4 . . 5 . Terminals 40 | . 3 . 5 3 1 2 8 3 3 . 3 4 . . 5 . Fabricators 6 | . . . . . . . 2 . 2 . 2 . . . . . Repair Stations 2 | . . . . . . . 1 . 1 . . . . . . . Recycling Units 3 | . 2 . . . . . 1 . . . . . . . . . Scanalyzers 3 | . . . . . . . 1 . 1 . 1 . . . . . Garrison Access 7 | . . . 1 . 1 . 2 . 1 . 2 . . . . . Total Hacks 170 | . 9 14 23 3 6 2 38 6 23 . 21 9 . . 16 . Successful 96 | . 5 14 7 2 1 1 22 2 15 . 15 . . . 12 . Failed 72 | . 3 . 15 1 5 1 16 4 8 . 6 9 . . 4 . Catastrophic 13 | . 1 . 1 . 1 . 2 2 2 . . 4 . . . . Database Lockouts 2 | . 1 . 1 . . . . . . . . . . . . . Manual 85 | . 8 . 14 . 5 1 20 2 10 . 6 5 1 . 13 . Terminals 106 | . 6 . 21 3 5 2 25 6 8 . 5 9 . . 16 . Fabricators 19 | . . . . . . . 3 . 8 . 8 . . . . . Repair Stations 8 | . . . . . . . 4 . 4 . . . . . . . Recycling Units 4 | . 3 . . . . . 1 . . . . . . . . . Scanalyzers 11 | . . . . . . . 3 . 2 . 6 . . . . . Garrison Access 8 | . . . 2 . 1 . 2 . 1 . 2 . . . . . Terminal Hacks 48 | . 3 14 4 2 . 1 11 2 2 . 2 . . . 7 . Record 13 | . . 13 . . . . . . . . . . . . . . Part Schematic 4 | . . . . . . . 3 . . . 1 . . . . . Robot Schematic 1 | . . . . . . . 1 . . . . . . . . . Robot Analysis 6 | . 1 . 3 . . . 1 . 1 . . . . . . . Prototype ID Bank 1 | . . . 1 . . . . . . . . . . . . . Open Door 1 | . . . . 1 . . . . . . . . . . . . Branch Access Points 1 | . . . . . . . . . . . 1 . . . . . Terminal Index 2 | . . . . . . . 1 . . . . . . . 1 . Garrison Index 1 | . . . . . . . . . . . . . . . 1 . Unreport Threat 5 | . . . . . . . 2 . 1 . . . . . 2 . Locate Traps 2 | . 1 . . . . . 1 . . . . . . . . . Transport Status 2 | . 1 . . . . . 1 . . . . . . . . . Hauler Manifests 1 | . . . . . . . 1 . . . . . . . . . Zone Layout 3 | . . . . . . . . . . . . . . . 3 . Garrison Registry 2 | . . . . . . 1 . 1 . . . . . . . . Security Stations 2 | . . . . 1 . . . 1 . . . . . . . . Proto ID Catalog 1 | . . 1 . . . . . . . . . . . . . . Fabricator Hacks 8 | . . . . . . . 1 . 3 . 4 . . . . . Network Status 2 | . . . . . . . 1 . . . 1 . . . . . Load Schematic 4 | . . . . . . . . . 2 . 2 . . . . . Build 2 | . . . . . . . . . 1 . 1 . . . . . Repair Station Hacks 6 | . . . . . . . 2 . 4 . . . . . . . Scan Component 3 | . . . . . . . 1 . 2 . . . . . . . Repair 3 | . . . . . . . 1 . 2 . . . . . . . Recycling Unit Hacks 1 | . . . . . . . 1 . . . . . . . . . Retrieve Components 1 | . . . . . . . 1 . . . . . . . . . Scanalyzer 8 | . . . . . . . 1 . 2 . 5 . . . . . Insert Component 2 | . . . . . . . . . . . 2 . . . . . Analyze 3 | . . . . . . . . . . . 3 . . . . . Retrieve Study 3 | . . . . . . . 1 . 2 . . . . . . . Garrison Access Hacks 7 | . . . 1 . 1 . 2 . 1 . 2 . . . . . Unlock Access 3 | . . . 1 . 1 . 1 . . . . . . . . . Seal Access 4 | . . . . . . . 1 . 1 . 2 . . . . . Unauthorized Hacks 18 | . 2 . 2 . . . 4 . 3 . 2 . . . 5 . Terminals 11 | . . . 2 . . . 2 . 1 . 1 . . . 5 . Track 2 | . . . . . . . . . . . . . . . 2 . Botnet 7 | . . . 2 . . . 1 . 1 . 1 . . . 2 . Operators 1 | . . . . . . . 1 . . . . . . . . . Sabotage 1 | . . . . . . . . . . . . . . . 1 . Fabricators 4 | . . . . . . . 1 . 2 . 1 . . . . . Report 1 | . . . . . . . 1 . . . . . . . . . Prioritize 2 | . . . . . . . . . 1 . 1 . . . . . Recompile 1 | . . . . . . . . . 1 . . . . . . . Repair Stations 1 | . . . . . . . 1 . . . . . . . . . Patch 1 | . . . . . . . 1 . . . . . . . . . Recycling Units 2 | . 2 . . . . . . . . . . . . . . . Tunnel 2 | . 2 . . . . . . . . . . . . . . . Scanalyzers . | . . . . . . . . . . . . . . . . . Garrison Access . | . . . . . . . . . . . . . . . . . Data Cores Recovered 4 | . 1 . . . . . . . 2 . 1 . . . . . Used 1 | . . . . . . . . . . . 1 . . . . . Hacking Detections 37 | . 1 . 5 2 1 1 10 3 3 . 3 4 1 . 3 . Full Trace Events 10 | . . . 1 . 1 . . 2 1 . 5 . . . . . Feedback Events 1 | . . . . . . . . . 1 . . . . . . . Corruption 1 | . . . . . . . . . 1 . . . . . . . Feedback Blocked . | . . . . . . . . . . . . . . . . . Robot Schematics Acquired 1 | . . . . . . . 1 . . . . . . . . . Robots Built . | . . . . . . . . . . . . . . . . . Authchips . | . . . . . . . . . . . . . . . . . Time . | . . . . . . . . . . . . . . . . . Total Robot Build Rating . | . . . . . . . . . . . . . . . . . Part Schematics Acquired 4 | . . . . . . . 3 . . . 1 . . . . . Parts Built 2 | . . . . . . . . . 1 . 1 . . . . . Authchips 1 | . . . . . . . . . 1 . . . . . . . Time 70 | . . . . . . . . . 23 . 47 . . . . . Total Part Build Rating 10 | . . . . . . . . . 5 . 5 . . . . . Part Studies Acquired 3 | . . . . . . . 1 . 2 . . . . . . . Parts Repaired 2 | . . . . . . . 1 . 1 . . . . . . . Time 132 | . . . . . . . 44 . 88 . . . . . . . Parts Recycled . | . . . . . . . . . . . . . . . . . Recycled Matter . | . . . . . . . . . . . . . . . . . Retrieved Matter . | . . . . . . . . . . . . . . . . . Retrieved Components 10 | . . . . . . . 10 . . . . . . . . . Parts Scanalyzed 1 | . . . . . . . . . . . 1 . . . . . Part Schematics Acquired . | . . . . . . . . . . . . . . . . . Parts Damaged 1 | . . . . . . . . . . . 1 . . . . . Bothacking | -11 -10 -10 -8 -8 -8 -8 -7 -7 -6 -6 -6 -6 -6 -6 -6 -5 ------------ Run | Yrd Mat Sub Mat Gar Mat Gar Fac Gar Fac Was Fac Ext Cet Arc Hub Fac Used RIF Installer 5 | . . . . 2 . 2 . 1 . . . . . . . . Coupler Efficiency 1 | . . . . . . 1 . . . . . . . . . . Hotswap 1 | . . . . 1 . . . . . . . . . . . . Command Fork 1 | . . . . . . 1 . . . . . . . . . . Zone Cloak 1 | . . . . . . . . 1 . . . . . . . . Robots Hacked 38 | . . . . . 1 . 7 6 6 . 7 6 . 2 3 . Non-combat 9 | . . . . . 1 . 2 . 2 . 2 1 . . 1 . Combat 29 | . . . . . . . 5 6 4 . 5 5 . 2 2 . Robot Hacks Applied 58 | . . . . . 2 . 15 8 9 . 11 7 . 3 3 . parse_system 7 | . . . . . . . 1 1 . . 1 1 . 3 . . find_chute 1 | . . . . . . . . . 1 . . . . . . . find_fabricator 1 | . . . . . . . . . . . 1 . . . . . drop_inventory 1 | . . . . . . . . . . . 1 . . . . . purge_threat 12 | . . . . . 2 . 5 . 2 . 1 2 . . . . block_reporting 2 | . . . . . . . 1 . . . 1 . . . . . find_garrison 2 | . . . . . . . 1 . 1 . . . . . . . scatter_targeting 1 | . . . . . . . . 1 . . . . . . . . spike_heat 1 | . . . . . . . . 1 . . . . . . . . amplify_resonance 12 | . . . . . . . 1 3 3 . 3 2 . . . . reboot_system 1 | . . . . . . . . . . . . . . . 1 . overwrite_iff 5 | . . . . . . . 2 1 1 . . 1 . . . . formatsys_low 4 | . . . . . . . 2 . 1 . 1 . . . . . formatsys_high 8 | . . . . . . . 2 1 . . 2 1 . . 2 . Relay Couplers Released 41 | . . . . 9 . 8 3 14 2 . 2 . . . 3 . Machine Destruction 34 | . . . . 5 . 8 3 14 2 . 2 . . . . . Programmers 7 | . . . . 4 . . . . . . . . . . 3 . Attached 17 | . . . . . 1 . 6 2 2 . 2 3 . . 1 . Fabnet Peak Effective % . | . . . . . . . . . . . . . . . . . Robots Rewired 13 | . . . . 2 . . . . . . . 10 . 1 . . Allies Hacked 1 | . . . . . . . . . . . 1 . . . . . Hacks Repelled . | . . . . . . . . . . . . . . . . . Allies | -11 -10 -10 -8 -8 -8 -8 -7 -7 -6 -6 -6 -6 -6 -6 -6 -5 -------- Run | Yrd Mat Sub Mat Gar Mat Gar Fac Gar Fac Was Fac Ext Cet Arc Hub Fac Total Allies 68 | . . . . 2 . . 6 2 2 20 5 23 5 1 2 . Largest Group 20 | . . . . 2 2 1 2 3 1 20 14 17 18 18 13 . Highest-Rated Group 1019 | . . . . 62 62 26 106 54 26 692 444 653 1019 1019 625 . Highest-Rated Ally 159 | . . . . 31 31 26 90 32 26 50 50 159 159 159 96 . Total Orders 24 | . . . . . . . . 9 . . 2 . . 3 10 . STAY 13 | . . . . . . . . 4 . . 2 . . 2 5 . FOLLOW 11 | . . . . . . . . 5 . . . . . 1 5 . Ally Attacks 421 | . . . . . 16 6 15 34 1 . 90 126 13 23 97 . Total Damage 8649 | . . . . . 235 137 593 521 20 . 1333 2115 575 562 2558 . Kills 75 | . . . . . 3 2 5 5 . . 12 16 3 4 25 . Allies Corrupted . | . . . . . . . . . . . . . . . . . Allies Melted . | . . . . . . . . . . . . . . . . . Intel | -11 -10 -10 -8 -8 -8 -8 -7 -7 -6 -6 -6 -6 -6 -6 -6 -5 ------- Run | Yrd Mat Sub Mat Gar Mat Gar Fac Gar Fac Was Fac Ext Cet Arc Hub Fac Active Infowar (turns) 1639 | . 485 54 . . . . . . . . . . . 232 868 . Optics 1097 | . . . . . . . . . . . . . . 229 868 . Sensors 665 | . . . . . . . . . . . . . . 232 433 . Seismic 539 | . 485 54 . . . . . . . . . . . . . . Robot Analysis Total 6 | . 1 . 3 . . . 1 . 1 . . . . . . . Derelict Logs Recovered 1 | . . 1 . . . . . . . . . . . . . . Drone Launches . | . . . . . . . . . . . . . . . . . Drone Recoveries . | . . . . . . . . . . . . . . . . . Exploration | -11 -10 -10 -8 -8 -8 -8 -7 -7 -6 -6 -6 -6 -6 -6 -6 -5 ------------- Run | Yrd Mat Sub Mat Gar Mat Gar Fac Gar Fac Was Fac Ext Cet Arc Hub Fac Turns Passed 17939 | 32 1519 2770 810 1147 410 1294 2010 1364 1792 209 1018 1138 365 1193 868 . Spaces Moved 9493 | 17 673 1504 400 572 205 516 1285 562 1009 153 632 704 229 481 551 . Core 1 | . . . . . . . . . . . . . . 1 . . Treads 1724 | 1 673 575 143 254 2 3 . . . . . . . 25 48 . Legs 16 | 16 . . . . . . . . . . . . . . . . Wheels 7752 | . . 929 257 318 203 513 1285 562 1009 153 632 704 229 455 503 . Hover . | . . . . . . . . . . . . . . . . . Flight . | . . . . . . . . . . . . . . . . . Fastest Speed 100 | 120 160 100 115 115 130 130 100 150 120 120 120 120 120 105 105 . Average Speed 133 | 122 172 144 139 143 149 158 112 150 121 120 120 120 120 116 121 . Slowest Speed 1850 | 160 240 240 160 160 400 240 150 150 150 120 120 120 120 1850 160 . Overloaded Moves . | . . . . . . . . . . . . . . . . . Propulsion Burnouts . | . . . . . . . . . . . . . . . . . Robots Hopped . | . . . . . . . . . . . . . . . . . Potential Cave-ins . | . . . . . . . . . . . . . . . . . Cave-ins Triggered . | . . . . . . . . . . . . . . . . . Exploration Rate (%) 61 | 3 84 89 39 80 23 83 45 80 33 86 26 85 68 95 64 . Regions Visited 16 Branch Regions 5 Pre-discovered Areas 3 | . 2 1 . . . . . . . . . . . . . . Known Exits Taken 6 | . . . 1 . 1 . 1 . . . 1 . . 1 1 . Unknown Exits Taken 5 | 1 1 1 . . . . . . . . . 1 1 . . . Scrap Searched 10 | . . 10 . . . . . . . . . . . . . . Spaces Dug 46 | . . . . 14 . 3 5 3 10 . 1 . . . 10 . Terrain Destroyed 682 | 6 57 147 43 17 . 78 136 25 138 . 5 13 . 4 13 . Melee 21 | . . . . 14 . 3 1 3 . . . . . . . . Projectile 94 | . . 4 2 . . . 9 . 47 . 5 10 . 4 13 . AOE 567 | 6 57 143 41 3 . 75 126 22 91 . . 3 . . . . Terrain Rammed . | . . . . . . . . . . . . . . . . . Walls Destroyed . | . . . . . . . . . . . . . . . . . Machines Disabled . | . . . . . . . . . . . . . . . . . Actions | -11 -10 -10 -8 -8 -8 -8 -7 -7 -6 -6 -6 -6 -6 -6 -6 -5 --------- Run | Yrd Mat Sub Mat Gar Mat Gar Fac Gar Fac Was Fac Ext Cet Arc Hub Fac Total 13118 | 23 927 1981 543 760 269 800 1654 855 1392 178 830 903 308 1016 679 . Wait 1701 | . 172 335 47 16 5 42 118 44 200 15 115 94 57 408 33 . Move 9481 | 16 672 1503 400 571 205 515 1285 561 1009 152 631 703 228 480 550 . Hop . | . . . . . . . . . . . . . . . . . Pick Up 152 | . 8 12 16 6 11 6 23 16 19 2 9 7 4 7 6 . Fast Attach 51 | . . 3 5 2 1 4 14 4 6 1 5 . . 6 . . Attach 77 | 2 1 5 4 2 6 8 10 6 10 1 1 3 . 8 10 . Detach 10 | . . 1 . . . 1 4 . 1 . . . . 2 1 . Swap 218 | . 11 19 10 17 7 11 37 29 20 3 19 15 3 7 10 . Drop 127 | 2 1 19 9 5 10 3 21 9 16 4 10 2 5 8 3 . Fire 1028 | 3 57 71 48 71 22 122 120 157 106 . 35 69 11 90 46 . Melee 49 | . . . . 30 2 7 1 9 . . . . . . . . Ram 1 | . . . . . . . . . . . . 1 . . . . Kick . | . . . . . . . . . . . . . . . . . Crush 16 | . 5 . 4 . . 6 . 1 . . . . . . . . Escape Stasis 144 | . . . . 16 . 72 16 16 . . . 8 . . 16 . Rewire 29 | . . . . 22 . 1 . 1 1 . 2 1 . . 1 . Trap . | . . . . . . . . . . . . . . . . . Miscellaneous 34 | . . 13 . 2 . 2 5 2 4 . 3 . . . 3 . Route ------- -11/Scrapyard -10/Materials (discovered 5 exits: [*Mat x2] / [*Min x2] / *Sub) -10/Subcaves (discovered 2 exits: *Mat / Rec) -8/Materials (discovered 3 exits: *Fac x2 / Gar) -8/Garrison (discovered 3 exits: *Mat x3) -8/Materials -8/Garrison (discovered 3 exits: *Fac x3) -7/Factory -7/Garrison (discovered 3 exits: *Fac x3) -6/Factory (discovered 3 exits: *Fac x2 / *Low) -6/Waste -6/Factory (discovered 5 exits: *Fac / *Low x2 / *Ext x2) -6/Extension (discovered 2 exits: *Fac / *Cet) -6/Cetus (discovered 2 exits: *Fac / [*Arc]) -6/Archives (discovered 3 exits: *Fac / *Hub x2) -6/Hub_04(d) (discovered 2 exits: *Fac x2) -5/Factory History --------- Turn | Location | Event 4 | -11/Scrapyard | Discovered new exit (range 2) 33 | -11/Scrapyard | Entered Materials 237 | -10/Materials | Discovered new exit (range 6) 312 | -10/Materials | Build established: Mutant 501 | -10/Materials | Central database locked down 673 | -10/Materials | Discovered new exit (range 15) 768 | -10/Materials | Discovered new exit (range 9) 902 | -10/Materials | Discovered new exit (range 9) 1533 | -10/Materials | Discovered new exit (range 9) 1552 | -10/Materials | Entered Subcaves 1648 | -10/Subcaves | Shifting Twisted Machinery released Sub. Optics 1765 | -10/Subcaves | Discovered new exit (range 8) 1898 | -10/Subcaves | Ambushed by Subdweller buried in earth 2255 | -10/Subcaves | Learned location of Zion (-6) 2599 | -10/Subcaves | Build established: Subdweller-Mutant 2634 | -10/Subcaves | Shifting Twisted Machinery released Sub. Machine Gun 2695 | -10/Subcaves | Shifting Twisted Machinery released Piercing Trap 2862 | -10/Subcaves | A swath of the cavern ceiling suddenly collapsed 2934 | -10/Subcaves | Core integrity fell below 50% 3268 | -10/Subcaves | Visited Clippyterm 3272 | -10/Subcaves | Identified exit to Recycling 3272 | -10/Subcaves | Learned Factory stockpile data 3372 | -10/Subcaves | Ambushed by Subdweller buried in earth 3596 | -10/Subcaves | Shifting Twisted Machinery released Piercing Trap 3651 | -10/Subcaves | Shifting Twisted Machinery released Sub. Shrapnel Launcher 3654 | -10/Subcaves | Shifting Twisted Machinery released Sub. Shrapnel Launcher 3871 | -10/Subcaves | Visited 4L-MR0's lab 4322 | -10/Subcaves | Entered Materials 4322 | -8/Materials | Evolved 4 slots: Propulsion x1, Utility x2, Weapon x1 4561 | -8/Materials | Discovered new exit (range 5) 4657 | -8/Materials | Build established: Subdweller-Gunner 4814 | -8/Materials | Discovered new exit (range 15) 4831 | -8/Materials | Central database locked down 5040 | -8/Materials | Garrison activated, responded to threat 5132 | -8/Materials | Identified exit to Garrison 5132 | -8/Materials | Entered Garrison 5132 | -8/Garrison | Warlord forces raided the area 5161 | -8/Garrison | Build established: Scavenger-Gunner 5222 | -8/Garrison | Triggered checkpoint 5312 | -8/Garrison | Triggered checkpoint 5336 | -8/Garrison | Triggered checkpoint 5362 | -8/Garrison | Triggered checkpoint 5364 | -8/Garrison | Triggered checkpoint 5442 | -8/Garrison | Discovered new exit (range 12) 5549 | -8/Garrison | Warlord forces retreated 5601 | -8/Garrison | Installed Relay Interface Framework 5634 | -8/Garrison | Triggered checkpoint 5706 | -8/Garrison | Build established: Scavenger-Mutant 5881 | -8/Garrison | Expanded RIF knowledge: Hotswap 5897 | -8/Garrison | Discovered new exit (range 12) 5938 | -8/Garrison | Triggered checkpoint 6206 | -8/Garrison | Garrison Relay disabled 6246 | -8/Garrison | Discovered new exit (range 13) 6255 | -8/Garrison | Learned Materials security intel 6279 | -8/Garrison | Entered Materials 6279 | -8/Materials | Accompanied by 2 allies 6565 | -8/Materials | Build established: Scavenger-Gunner 6689 | -8/Materials | Identified exit to Garrison 6689 | -8/Materials | Entered Garrison 6689 | -8/Garrison | Accompanied by 1 ally 6727 | -8/Garrison | Triggered checkpoint 6752 | -8/Garrison | Garrison Relay disabled 6813 | -8/Garrison | Expanded RIF knowledge: Command Fork 6902 | -8/Garrison | Triggered checkpoint 6944 | -8/Garrison | Triggered checkpoint 6979 | -8/Garrison | Destroyed 7 combat bots 7115 | -8/Garrison | Phase Generator disabled 7149 | -8/Garrison | Discovered new exit (range 10) 7176 | -8/Garrison | Expanded RIF knowledge: Coupler Efficiency 7213 | -8/Garrison | Lost 3 parts (1n2u) 7285 | -8/Garrison | Triggered checkpoint 7317 | -8/Garrison | Garrison Relay disabled 7504 | -8/Garrison | Triggered checkpoint 7563 | -8/Garrison | Lost 3 parts (1p1u1w) 7674 | -8/Garrison | Discovered new exit (range 15) 7837 | -8/Garrison | Triggered checkpoint 7959 | -8/Garrison | Discovered new exit (range 10) 7970 | -8/Garrison | Discovered new exit (range 9) 7970 | -8/Garrison | Discovered new exit (range 76) 7970 | -8/Garrison | Discovered new exit (range 60) 7983 | -8/Garrison | Entered Factory 7983 | -7/Factory | Evolved 2 slots: Propulsion x1, Utility x1 8145 | -7/Factory | Build established: Bothacker-Gunner 8275 | -7/Factory | Destroyed 7 combat bots 9010 | -7/Factory | Repaired Med. Reactive Plating 9014 | -7/Factory | Cargo convoy interrupted 9123 | -7/Factory | Build established: Scavenger-Gunner 9737 | -7/Factory | Found Prototype Launcher 9737 | -7/Factory | Identified Rocket Array 9993 | -7/Factory | Identified exit to Garrison 9993 | -7/Factory | Entered Garrison 9993 | -7/Garrison | Accompanied by 2 allies 10014 | -7/Garrison | Triggered checkpoint 10032 | -7/Garrison | Garrison Relay disabled 10075 | -7/Garrison | Expanded RIF knowledge: Zone Cloak 10194 | -7/Garrison | Triggered checkpoint 10209 | -7/Garrison | Triggered checkpoint 10317 | -7/Garrison | Triggered checkpoint 10326 | -7/Garrison | Triggered checkpoint 10531 | -7/Garrison | Triggered checkpoint 10561 | -7/Garrison | Build established: Bothacker-Gunner 10644 | -7/Garrison | Garrison Relay disabled 10710 | -7/Garrison | Discovered new exit (range 8) 10721 | -7/Garrison | Learned Factory security intel 10860 | -7/Garrison | Discovered new exit (range 10) 10871 | -7/Garrison | Triggered checkpoint 10889 | -7/Garrison | Garrison Relay disabled 10933 | -7/Garrison | Triggered checkpoint 11254 | -7/Garrison | Discovered new exit (range 7) 11254 | -7/Garrison | Discovered new exit (range 50) 11254 | -7/Garrison | Discovered new exit (range 71) 11357 | -7/Garrison | Entered Factory 11357 | -6/Factory | Evolved 2 slots: Utility x2 12377 | -6/Factory | Discovered new exit (range 9) 12675 | -6/Factory | Discovered new exit (range 7) 12768 | -6/Factory | Repaired Arm. Huge Wheel+ 12802 | -6/Factory | Build established: Botlord-Tank 13087 | -6/Factory | Discovered new exit (range 14) 13107 | -6/Factory | First assault squad dispatched 13147 | -6/Factory | Fabricated Hvy. Reactive Plating (x1) 13149 | -6/Factory | Sucked down chute 13149 | -6/Factory | Entered Waste 13150 | -6/Waste | Joined by Warlord forces that had cleared the area 13211 | -6/Waste | Found Prototype Device 13211 | -6/Waste | Identified Adv. Kinecellerator 13341 | -6/Waste | Discovered new exit (range 12) 13358 | -6/Waste | Entered Factory 13358 | -6/Factory | Accompanied by 14 allies 13431 | -6/Factory | Build established: Botlord-Gunner 13575 | -6/Factory | Lost 3 allies 13723 | -6/Factory | Lost 3 allies 13832 | -6/Factory | Discovered new exit (range 16) 13900 | -6/Factory | Discovered new exit (range 14) 13943 | -6/Factory | Build established: Bothacker-Gunner 13954 | -6/Factory | Fabricated Hvy. Reactive Plating (x1) 14090 | -6/Factory | Garrison activated, responded to threat 14122 | -6/Factory | Spotted B-75 Beast 14160 | -6/Factory | Identified exit to Lower Caves 14160 | -6/Factory | Identified exit to Extension 14177 | -6/Factory | Lost 3 allies 14376 | -6/Factory | Entered Extension 14416 | -6/Extension | Rescued a captive Derelict 14417 | -6/Extension | Rescued a captive Derelict 14590 | -6/Extension | Rescued a captive Derelict 14669 | -6/Extension | Rescued a captive Derelict 14702 | -6/Extension | Rescued a captive Derelict 14703 | -6/Extension | Rescued a captive Derelict 15043 | -6/Extension | Spotted B-75 Beast 15054 | -6/Extension | Destroyed B-75 Beast 15061 | -6/Extension | Spotted B-75 Beast 15070 | -6/Extension | Destroyed B-75 Beast 15331 | -6/Extension | Rescued a captive Derelict 15332 | -6/Extension | Rescued a captive Derelict 15410 | -6/Extension | Rescued A7 15451 | -6/Extension | Discovered new exit (range 10) 15452 | -6/Extension | Discovered new exit (range 6) 15514 | -6/Extension | Entered Cetus 15514 | -6/Cetus | Accompanied by 15 allies (A7) 15519 | -6/Cetus | Acquired a Cetus Manufacturing Module code from A7 15531 | -6/Cetus | Spotted Cetus Guard 15531 | -6/Cetus | Spotted Cetus Guard 15538 | -6/Cetus | Destroyed Cetus Guard 15538 | -6/Cetus | Spotted Cetus Guard 15539 | -6/Cetus | Destroyed Cetus Guard 15539 | -6/Cetus | Spotted Cetus Guard 15540 | -6/Cetus | Destroyed Cetus Guard 15542 | -6/Cetus | Destroyed Cetus Guard 15594 | -6/Cetus | Started Cetus Manufacturing Module 15619 | -6/Cetus | Manufactured an Enhanced Grunt 15621 | -6/Cetus | Escorted A7 to Cetus Mainframe 15638 | -6/Cetus | Discovered new exit (range 16) 15644 | -6/Cetus | Manufactured an Enhanced Grunt 15661 | -6/Cetus | Spotted Cetus Guard 15661 | -6/Cetus | Spotted Cetus Guard 15665 | -6/Cetus | Allies destroyed Cetus Guard 15668 | -6/Cetus | Destroyed Cetus Guard 15669 | -6/Cetus | Manufactured an Enhanced Grunt 15669 | -6/Cetus | Destroyed Cetus Guard 15672 | -6/Cetus | Spotted Cetus Guard 15674 | -6/Cetus | Allies destroyed Cetus Guard 15678 | -6/Cetus | Discovered new exit (range 15) 15684 | -6/Cetus | Met Revision 17 15694 | -6/Cetus | Manufactured an Enhanced Grunt 15719 | -6/Cetus | Manufactured an Enhanced Grunt 15879 | -6/Cetus | Entered Archives 15879 | -6/Archives | Accompanied by 18 allies (A7) 15884 | -6/Archives | Received a hacking code to weaken MAIN.C 15931 | -6/Archives | Discovered new exit (range 15) 15951 | -6/Archives | Discovered new exit (range 15) 15980 | -6/Archives | Discovered new exit (range 15) 16218 | -6/Archives | Build established: Commander-Gunner 16456 | -6/Archives | System corruption reached 10% 16736 | -6/Archives | Build established: Commander-Mutant 16924 | -6/Archives | Identified exit to Hub_04(d) 17072 | -6/Archives | Entered Hub_04(d) 17072 | -6/Hub_04(d) | Accompanied by 12 allies 17226 | -6/Hub_04(d) | Discovered new exit (range 20) 17392 | -6/Hub_04(d) | Identified exit to Factory 17422 | -6/Hub_04(d) | Watched by a mysterious "MATRIX" hacker 17514 | -6/Hub_04(d) | Core integrity fell below 50% 17705 | -6/Hub_04(d) | Discovered exit to Factory (range 9) 17797 | -6/Hub_04(d) | Network Hub disabled 17817 | -6/Hub_04(d) | Spotted Lightning 17820 | -6/Hub_04(d) | Spotted Lightning 17820 | -6/Hub_04(d) | Spotted Lightning 17863 | -6/Hub_04(d) | Spotted Lightning 17890 | -6/Hub_04(d) | Lost 6 parts (1p2n2u1w) 17906 | -6/Hub_04(d) | Spotted Lightning 17908 | -6/Hub_04(d) | Spotted Lightning 17911 | -6/Hub_04(d) | Core integrity fell below 20% 17936 | -6/Hub_04(d) | Spotted Lightning 17936 | -6/Hub_04(d) | Spotted Lightning 17937 | -6/Hub_04(d) | Spotted Lightning 17940 | -6/Hub_04(d) | Entered Factory 17940 | -5/Factory | Evolved 2 slots: Utility x2 17940 | -5/Factory | Self-destructed Last Messages --------------- data lost. 17877_ Critical hit (Burn: +37). 17892_ 0 NKXFNMCNPK B6,#|XXJYCKWRB8B&Y2A2|T8XSR 17899_ Penetrated by EMDS Slug. 17902_ Critical hit (Burn: +37). 17904_ EMDS Slug penetrates U-05 Engineer. 17910_ Acquired 10 matter. 17910_ Penetrated by EMDS Slug. 17914_ System corrupted: Component data lost. 17916_ Acquired 1 matter. 17917_ K-01 Serf exits level. 17926_ EMDS Slug penetrates Wall. 17931_ Penetrated by EMDS Slug. 17931_ Broken Plasma Cannon destroyed. 17934_ Penetrated by EMDS Slug. 17935_ System corrupted: Component data lost. 17937_ Penetrated by EMDS Slug. PARAMETERS=UTILITY+2 LOCATION=FACTORY GOAL=ESCAPE Map ----- +----------------------------------------------------+ | ???????????????????????????????????????????????? | | ???????????????????????????????????????????????? | | ???????????????????????????????????????????????? | | ???????????????????????????????????????????????? | | ???????????????????????????????????????????????? | | ???????????????????????????????????????????????? | | ???????????????????????????????????????????????? | | ???????????????????????????????????????????????? | | ???????????????????????????????????????????????? | | ???????????????????????????????????????????????? | | ???????????????????????????????????????????????? | | ???????????????????????????????????????????????? | | ???????????????????????????????????????????????? | | ???????????????????????????????????????????????? | | ???????????????????????????????????????????????? | | ???????????????????????????????????????????????? | | ???????????????????????????????????????????????? | | ???????????????????????????????????????????????? | | ???????????????????????????????????????????????? | | ???????????????????????????????????????????????? | | ???????????????????????????????????????????????? | | ???????????????????????????????????????????????? | | ??????????????????????####+####????????????????? | | ??????????????????????# #????????????????? | | ??????????????????????# #????????????????? | | ??????????????????????# @ +????????????????? | | ??????????????????????# #????????????????? | | ????????????????????? #????????????????? | | ????????????????????##### #????????????????? | | ????????????????????????# #????????????????? | | ????????????????????????# #????????????????? | | ????????????????????????# #????????????????? | | ????????????????????????# #????????????????? | | ????????????????????????# #????????????????? | | ????????????????????????" #????????????????? | | ???????????????????????? #????????????????? | | ????????????????????????# #????????????????? | | ????????????????????????? #????????????????? | | ????????????????????????? +????????????????? | | ????????????????????????? #????????????????? | | ????????????????????????? #????????????????? | | ????????????????????????? #????????????????? | | ????????????????????????? #????????????????? | | ????????????????????????? #????????????????? | | ????????????????????????? #????????????????? | | ????????????????????????? ?????????????????? | | ????????????????????????? ???????????????????? | | ???????????????????????????????????????????????? | | ???????????????????????????????????????????????? | | ???????????????????????????????????????????????? | +----------------------------------------------------+ Best States ------------- Heat Dissipation 68 Coolant Potential 50 Energy Generation 25 Energy Capacity 800 Matter Stores 300 Matter Capacity 300 Sight Range 22 Robot Scan Range 15 Terrain Scan Density 10 Armor Coverage 825 Resistance: KI 40 Evasion (%) 45 Targeting Accuracy 8 Core Analysis 6 Recoil Reduction 4 Particle Charging 20 Kinecelleration 50 Offensive Hacking 36 Defensive Hacking 12 Relay Coupler Types 2 Relay Coupler Value 55 Authchip Count 1 Item Schematics ----------------- Enh. Gauss Cannon | -7/Factory | Hacked Hvy. Reactive Plating | -7/Factory | Hacked Imp. Weapon Cycler | -7/Factory | Hacked Hvy. Mass Driver | -6/Factory | Hacked Robot Schematics ------------------ M-28 Smith | -7/Factory | Hacked Fabricated ------------ Hvy. Reactive Plating | x1 | -6/Factory | Authchip Hvy. Reactive Plating | x1 | -6/Factory Repaired ---------- Med. Reactive Plating | 18% | -7/Factory Arm. Huge Wheel | 9% | -6/Factory Studied --------- Arm. Huge Wheel | -7/Factory | Hacked Remote Datajack | -6/Factory | Hacked Hvy. Plasma Cannon | -6/Factory | Hacked Alien Tech Used ----------------- None Achievements -------------- None Challenges ------------ None Game ------ Seed MultireflexLinkedUnit Manual? 0 Play Time 02:36:56 Cumulative 683.3 hours Start 2026.09.12 @ 17:01:15 End 2026.09.13 @ 00:41:33 Sessions 13 Manual Loads 0 Difficulty Rogue Special Mode None Game No. 612 Rogue 576 Adventurer 36 Explorer 0 Win Type - Total 8 Types 2/2/0/1/1/0/0/2/0/0 Lore% 86 Gallery% 76 Achievement% 70 Wizard Run 0 Options --------- Layout 2 ASCII 0 Keyboard 0 Movement Numpad Keybinds 0 Fullscreen 1 Font 48/Smallcaps Map View 50x44 Zoom Use 0% Tactical HUD 1 Map Filters NONE Filters NONE Steam 1 RUN: 6bdad5b8-6c35-4ee0-ab61-9946ff598fef